fUST/lending_fUST_20240830
["ID","MTS","AMOUNT","RATE_DAILY","PERIOD"]
[336589236,1724959860676,-151.0,0.00020273,2]
[336589237,1724959860687,-500.0,0.00020273,2]
[336589238,1724959860697,-584.54,0.00020273,2]
[336589239,1724959860707,-500.7,0.00020273,2]
[336589240,1724959860719,-151.0,0.00020273,2]
[336589241,1724959860731,-151.0,0.00020273,2]
[336589242,1724959860742,-500.0,0.00020273,2]
[336589243,1724959860753,-500.0,0.00020273,2]
[336589244,1724959860763,-500.0,0.00020273,2]
[336589245,1724959860776,-500.0,0.00020273,2]
[336589246,1724959860786,-500.0,0.00020273,2]
[336589247,1724959860796,-1704.24,0.00020273,2]
[336589248,1724959860805,-500.0,0.00020273,2]
[336589249,1724959860815,-500.0,0.00020273,2]
[336589250,1724959860825,-500.0,0.00020273,2]
[336589251,1724959860834,-512.07119717,0.00020273,2]
[336589252,1724959860844,-500.0,0.00020273,2]
[336589253,1724959860854,-500.0,0.00020273,2]
[336589254,1724959860864,-500.0,0.00020273,2]
[336589255,1724959860875,-500.0,0.00020273,2]
[336589256,1724959860885,-500.0,0.00020273,2]
[336589257,1724959860894,-1674.51,0.00020273,2]
[336589258,1724959860904,-500.0,0.00020273,2]
[336589259,1724959860915,-500.0,0.00020273,2]
[336589260,1724959860925,-500.0,0.00020273,2]
[336589261,1724959860935,-500.0,0.00020273,2]
[336589262,1724959860945,-500.0,0.00020273,2]
[336589263,1724959860956,-2011.91,0.00020273,2]
[336589264,1724959860966,-500.0,0.00020273,2]
[336589265,1724959860976,-1578.86,0.00020273,2]
[336589266,1724959860986,-5672.749772,0.00020273,2]
[336589267,1724959860995,-500.0,0.00020273,2]
[336589268,1724959861005,-5672.749772,0.00020273,2]
[336589269,1724959861015,-500.0,0.00020273,2]
[336589270,1724959861024,-579.16,0.00020273,2]
[336589271,1724959861035,-5094.968618,0.00020273,2]
[336589272,1724959861044,-285.35919776,0.00020273,2]
[336589273,1724959861054,-500.0,0.00020273,2]
[336589274,1724959861064,-5094.968618,0.00020273,2]
[336589275,1724959861074,-500.0,0.00020273,2]
[336589276,1724959861086,-1943.11,0.00020273,2]
[336589277,1724959861095,-500.0,0.00020273,2]
[336589278,1724959861105,-4403.86,0.00020273,2]
[336589279,1724959861114,-500.0,0.00020273,2]
[336589280,1724959861124,-3148.43,0.00020273,2]
[336589281,1724959861135,-5511.193121,0.00020273,2]
[336589282,1724959861145,-5511.193121,0.00020273,2]
[336589283,1724959861155,-237.310026,0.00020273,2]
[336589284,1724959861165,-1722.01,0.00020273,2]
[336589285,1724959861176,-2200.88,0.00020273,2]
[336589286,1724959861187,-10005.23,0.00020273,2]
[336589287,1724959861197,-1758.17,0.00020273,2]
[336589288,1724959861208,-500.0,0.00020273,2]
[336589289,1724959861218,-500.0,0.00020273,2]
[336589290,1724959861229,-4039.87,0.00020273,2]
[336589291,1724959861239,-151.0,0.00020273,2]
[336589292,1724959861249,-2874.84,0.00020273,2]
[336589293,1724959861259,-6955.28,0.00020273,2]
[336589294,1724959861270,-278.257756,0.00020273,2]
[336589295,1724959861281,-8645.87,0.00020273,2]
[336589296,1724959861291,-7860.36,0.00020273,2]
[336589297,1724959861303,-500.0,0.00020273,2]
[336589298,1724959861314,-3052.09,0.00020273,2]
[336589299,1724959861324,-273.471213,0.00020273,2]
[336589300,1724959861334,-526.41,0.00020273,2]
[336589301,1724959861344,-273.471213,0.00020273,2]
[336589302,1724959861354,-1992.41,0.00020273,2]
[336589303,1724959861364,-357.54992962,0.00020273,2]
[336589304,1724959861378,-2516.329952,0.00020273,2]
[336589305,1724959861388,-500.0,0.00020273,2]
[336589306,1724959861399,-2047.97,0.00020273,2]
[336589307,1724959861410,-1568.45,0.00020273,2]
[336589308,1724959861420,-2516.329952,0.00020273,2]
[336589309,1724959861431,-1562.05,0.00020273,2]
[336589310,1724959861441,-500.0,0.00020273,2]
[336589311,1724959861452,-500.0,0.00020273,2]
[336589312,1724959861462,-500.0,0.00020273,2]
[336589313,1724959861472,-500.0,0.00020273,2]
[336589314,1724959861483,-151.0,0.00020273,2]
[336589315,1724959861493,-500.0,0.00020273,2]
[336589316,1724959861504,-283.389656,0.00020273,2]
[336589317,1724959861515,-2122.12,0.00020273,2]
[336589318,1724959861525,-864.74,0.00020273,2]
[336589319,1724959861539,-283.389656,0.00020273,2]
[336589320,1724959861551,-10000.0,0.00020273,2]
[336589321,1724959861562,-727.36,0.00020273,2]
[336589322,1724959861573,-500.0,0.00020273,2]
[336589323,1724959861584,-3582.04,0.00020273,2]
[336589324,1724959861595,-10000.0,0.00020273,2]
[336589325,1724959861605,-10000.0,0.00020273,2]
[336589326,1724959861615,-500.0,0.00020273,2]
[336589327,1724959861628,-1462.75,0.00020273,2]
[336589328,1724959861639,-3402.875029,0.00020273,2]
[336589329,1724959861650,-7676.07,0.00020273,2]
[336589330,1724959861662,-151.0,0.00020273,2]
[336589331,1724959861674,-500.0,0.00020273,2]
[336589332,1724959861688,-500.0,0.00020273,2]
[336589333,1724959861699,-500.0,0.00020273,2]
[336589334,1724959861708,-535.44,0.00020273,2]
[336589335,1724959861718,-151.0,0.00020273,2]
[336589336,1724959861730,-636.36,0.00020273,2]
[336589337,1724959861740,-500.0,0.00020273,2]
[336589338,1724959861750,-500.0,0.00020273,2]
[336589339,1724959861760,-500.0,0.00020273,2]
[336589340,1724959861771,-1215.51,0.00020273,2]
[336589341,1724959861784,-500.0,0.00020273,2]
[336589342,1724959861794,-500.0,0.00020273,2]
[336589343,1724959861804,-1345.15,0.00020273,2]
[336589344,1724959861814,-2499.8,0.00020273,2]
[336589345,1724959861824,-1920.4,0.00020273,2]
[336589346,1724959861834,-513.49656592,0.00020273,2]
[336589347,1724959861844,-2341.41,0.00020273,2]
[336589348,1724959861854,-500.0,0.00020273,2]
[336589349,1724959861864,-2245.67,0.00020273,2]
[336589350,1724959861873,-3653.88,0.00020273,2]
[336589351,1724959861884,-500.0,0.00020273,2]
[336589352,1724959861893,-500.0,0.00020273,2]
[336589353,1724959861904,-500.0,0.00020273,2]
[336589354,1724959861913,-1513.12,0.00020273,2]
[336589355,1724959861923,-500.0,0.00020273,2]
[336589356,1724959861933,-500.0,0.00020273,2]
[336589357,1724959861943,-5015.805609,0.00020273,2]
[336589358,1724959861953,-7125.4,0.00020273,2]
[336589359,1724959861962,-1562.151045,0.00020273,2]
[336589360,1724959861972,-687.9,0.00020273,2]
[336589361,1724959861983,-500.0,0.00020273,2]
[336589362,1724959861992,-2432.83,0.00020273,2]
[336589363,1724959862002,-500.0,0.00020273,2]
[336589364,1724959862012,-500.0,0.00020273,2]
[336589365,1724959862022,-5015.805609,0.00020273,2]
[336589366,1724959862035,-1562.151045,0.00020273,2]
[336589367,1724959862044,-1735.37,0.00020273,2]
[336589368,1724959862053,-500.0,0.00020273,2]
[336589369,1724959862063,-500.0,0.00020273,2]
[336589370,1724959862072,-198.948511,0.00020273,2]
[336589371,1724959862081,-500.0,0.00020273,2]
[336589372,1724959862092,-1860.24,0.00020273,2]
[336589373,1724959862101,-500.0,0.00020273,2]
[336589374,1724959862111,-1823.65,0.00020273,2]
[336589375,1724959862121,-198.948511,0.00020273,2]
[336589376,1724959862131,-151.0,0.00020273,2]
[336589377,1724959862139,-500.0,0.00020273,2]
[336589378,1724959862149,-500.0,0.00020273,2]
[336589379,1724959862159,-500.0,0.00020273,2]
[336589380,1724959862168,-1687.53,0.00020273,2]
[336589381,1724959862178,-640.19,0.00020273,2]
[336589382,1724959862190,-1798.968384,0.00020273,2]
[336589383,1724959862200,-500.0,0.00020273,2]
[336589384,1724959862210,-1798.968384,0.00020273,2]
[336589385,1724959862222,-2819.92,0.00020273,2]
[336589386,1724959862233,-692.81,0.00020273,2]
[336589387,1724959862243,-500.0,0.00020273,2]
[336589388,1724959862253,-7069.08,0.00020273,2]
[336589389,1724959862263,-500.0,0.00020273,2]
[336589390,1724959862272,-7852.79,0.00020273,2]
[336589391,1724959862287,-500.0,0.00020273,2]
[336589392,1724959862302,-1778.75,0.00020273,2]
[336589393,1724959862312,-500.0,0.00020273,2]
[336589394,1724959862322,-500.173075,0.00020273,2]
[336589395,1724959862332,-151.0,0.00020273,2]
[336589396,1724959862342,-5307.89,0.00020273,2]
[336589397,1724959862351,-500.173075,0.00020273,2]
[336589398,1724959862361,-500.0,0.00020273,2]
[336589399,1724959862370,-563.92,0.00020273,2]
[336589400,1724959862379,-563.48,0.00020273,2]
[336589401,1724959862389,-216.91382665,0.00020273,2]
[336589402,1724959862399,-4411.53,0.00020273,2]
[336589403,1724959862408,-500.0,0.00020273,2]
[336589404,1724959862418,-810.09,0.00020273,2]
[336589405,1724959862427,-500.0,0.00020273,2]
[336589406,1724959862436,-500.0,0.00020273,2]
[336589407,1724959862446,-500.0,0.00020273,2]
[336589408,1724959862455,-10944.91587032,0.00020377,2]
[336589409,1724959862465,-3206.618,0.00020419,2]
[336589410,1724959862474,-370.44,0.00020518,3]
[336589411,1724959862485,-740.86,0.00020528,3]
[336589412,1724959862495,-500.0,0.00020547,2]
[336589413,1724959862504,-500.0,0.00020547,2]
[336589414,1724959862632,-500.0,0.00020547,2]
[336589415,1724959862643,-500.0,0.00020547,2]
[336589416,1724959862654,-500.0,0.00020547,2]
[336589417,1724959862664,-500.0,0.00020547,2]
[336589418,1724959862674,-151.0,0.00020547,2]
[336589419,1724959862684,-200.0,0.00020547,2]
[336589420,1724959862693,-500.0,0.00020547,2]
[336589421,1724959862703,-500.0,0.00020547,2]
[336589422,1724959862713,-500.0,0.00020547,2]
[336589423,1724959862722,-500.0,0.00020547,2]
[336589424,1724959862732,-500.0,0.00020547,2]
[336589425,1724959862741,-500.0,0.00020547,2]
[336589426,1724959862750,-500.0,0.00020547,2]
[336589427,1724959862760,-500.0,0.00020547,2]
[336589428,1724959862769,-500.0,0.00020547,2]
[336589429,1724959862782,-500.0,0.00020547,2]
[336589430,1724959862791,-972.15,0.00020547,2]
[336589431,1724959862801,-500.0,0.00020547,2]
[336589432,1724959862810,-500.0,0.00020547,2]
[336589433,1724959862820,-500.0,0.00020547,2]
[336589434,1724959862830,-500.0,0.00020547,2]
[336589435,1724959862839,-568.31,0.00020547,2]
[336589436,1724959862848,-500.0,0.00020547,2]
[336589437,1724959862859,-500.0,0.00020547,2]
[336589438,1724959862868,-500.0,0.00020547,2]
[336589439,1724959862877,-500.0,0.00020547,2]
[336589440,1724959862886,-886.8,0.00020547,2]
[336589441,1724959862896,-500.0,0.00020547,2]
[336589442,1724959862906,-591.56,0.00020547,2]
[336589443,1724959862915,-500.0,0.00020547,2]
[336589444,1724959862925,-500.0,0.00020547,2]
[336589445,1724959862935,-151.0,0.00020547,2]
[336589446,1724959862947,-246.841308,0.00020547,2]
[336589447,1724959862958,-500.0,0.00020547,2]
[336589448,1724959862967,-246.841308,0.00020547,2]
[336589449,1724959862976,-572.09,0.00020547,2]
[336589450,1724959862986,-507.64,0.00020547,2]
[336589451,1724959862995,-986.6,0.00020547,2]
[336589452,1724959863004,-500.0,0.00020547,2]
[336589453,1724959863014,-151.0,0.00020547,2]
[336589454,1724959863024,-500.0,0.00020547,2]
[336589455,1724959863035,-668.17,0.00020547,2]
[336589456,1724959863044,-500.0,0.00020547,2]
[336589457,1724959863053,-1355.56,0.00020547,2]
[336589458,1724959863063,-776.41,0.00020547,2]
[336589459,1724959863072,-500.0,0.00020547,2]
[336589460,1724959863083,-829.52,0.00020547,2]
[336589461,1724959863093,-579.36,0.00020547,2]
[336589462,1724959863103,-500.0,0.00020547,2]
[336589463,1724959863113,-151.0,0.00020547,2]
[336589464,1724959863123,-605.81,0.00020547,2]
[336589465,1724959863132,-355.71,0.00020547,2]
[336589466,1724959863141,-151.0,0.00020547,2]
[336589467,1724959863151,-836.77,0.00020547,2]
[336589468,1724959863162,-500.0,0.00020547,2]
[336589469,1724959863171,-500.0,0.00020547,2]
[336589470,1724959863181,-584.54,0.00020547,2]
[336589471,1724959863192,-500.7,0.00020547,2]
[336589472,1724959863202,-500.0,0.00020547,2]
[336589473,1724959863212,-500.0,0.00020547,2]
[336589474,1724959863225,-500.0,0.00020547,2]
[336589475,1724959863235,-231.491231,0.00020547,2]
[336589476,1724959863245,-231.491231,0.00020547,2]
[336589477,1724959863255,-151.0,0.00020547,2]
[336589478,1724959863266,-500.0,0.00020547,2]
[336589479,1724959863276,-1704.24,0.00020547,2]
[336589480,1724959863288,-2671.944837,0.00020547,2]
[336589481,1724959863298,-500.0,0.00020547,2]
[336589482,1724959863308,-500.0,0.00020547,2]
[336589483,1724959863318,-341.78135092,0.00020547,2]
[336589484,1724959863327,-261.99,0.00020547,2]
[336589485,1724959863336,-500.0,0.00020547,2]
[336589486,1724959863347,-500.0,0.00020547,2]
[336589487,1724959863357,-500.0,0.00020547,2]
[336589488,1724959863367,-1674.51,0.00020547,2]
[336589489,1724959863377,-500.0,0.00020547,2]
[336589490,1724959863387,-151.0,0.00020547,2]
[336589491,1724959863397,-208.737688,0.00020547,2]
[336589492,1724959863407,-500.0,0.00020547,2]
[336589493,1724959863417,-151.0,0.00020547,2]
[336589494,1724959863427,-500.0,0.00020547,2]
[336589495,1724959863436,-324.19601364,0.00020547,2]
[336589496,1724959863446,-500.0,0.00020547,2]
[336589497,1724959863457,-2011.91,0.00020547,2]
[336589498,1724959863466,-500.0,0.00020547,2]
[336589499,1724959863476,-1578.86,0.00020547,2]
[336589500,1724959863486,-500.0,0.00020547,2]
[336589501,1724959863496,-530.22154888,0.00020547,2]
[336589502,1724959863506,-504.21751681,0.00020547,2]
[336589503,1724959863517,-500.0,0.00020547,2]
[336589504,1724959863527,-1943.11,0.00020547,2]
[336589505,1724959863539,-500.0,0.00020547,2]
[336589506,1724959863548,-4403.86,0.00020547,2]
[336589507,1724959863558,-500.0,0.00020547,2]
[336589508,1724959863568,-3148.43,0.00020547,2]
[336589509,1724959863578,-1722.01,0.00020547,2]
[336589510,1724959863587,-2200.88,0.00020547,2]
[336589511,1724959863597,-10005.23,0.00020547,2]
[336589512,1724959863607,-1758.17,0.00020547,2]
[336589513,1724959863617,-500.0,0.00020547,2]
[336589514,1724959863627,-500.0,0.00020547,2]
[336589515,1724959863636,-4039.87,0.00020547,2]
[336589516,1724959863646,-2874.84,0.00020547,2]
[336589517,1724959863656,-6955.28,0.00020547,2]
[336589518,1724959863665,-8645.87,0.00020547,2]
[336589519,1724959863675,-7860.36,0.00020547,2]
[336589520,1724959863685,-231.56322919,0.00020547,2]
[336589521,1724959863694,-3052.09,0.00020547,2]
[336589522,1724959863704,-526.41,0.00020547,2]
[336589523,1724959863714,-1992.41,0.00020547,2]
[336589524,1724959863724,-500.0,0.00020547,2]
[336589525,1724959863734,-2047.97,0.00020547,2]
[336589526,1724959863743,-1568.45,0.00020547,2]
[336589527,1724959863754,-1778.974224,0.00020547,2]
[336589528,1724959863765,-1562.05,0.00020547,2]
[336589529,1724959863776,-500.0,0.00020547,2]
[336589530,1724959863786,-1778.974224,0.00020547,2]
[336589531,1724959863796,-500.0,0.00020547,2]
[336589532,1724959863806,-500.0,0.00020547,2]
[336589533,1724959863815,-500.0,0.00020547,2]
[336589534,1724959863825,-2122.12,0.00020547,2]
[336589535,1724959863835,-864.74,0.00020547,2]
[336589536,1724959863845,-727.36,0.00020547,2]
[336589537,1724959863856,-500.0,0.00020547,2]
[336589538,1724959863866,-3582.04,0.00020547,2]
[336589539,1724959863876,-500.0,0.00020547,2]
[336589540,1724959863885,-1462.75,0.00020547,2]
[336589541,1724959863895,-7676.07,0.00020547,2]
[336589542,1724959863905,-500.0,0.00020547,2]
[336589543,1724959863915,-500.0,0.00020547,2]
[336589544,1724959863926,-535.44,0.00020547,2]
[336589545,1724959863936,-636.36,0.00020547,2]
[336589546,1724959863946,-500.0,0.00020547,2]
[336589547,1724959863956,-500.0,0.00020547,2]
[336589548,1724959863967,-503.75275773,0.00020547,2]
[336589549,1724959863977,-1215.51,0.00020547,2]
[336589550,1724959863987,-500.0,0.00020547,2]
[336589551,1724959863997,-500.0,0.00020547,2]
[336589552,1724959864007,-1345.15,0.00020547,2]
[336589553,1724959864017,-2499.8,0.00020547,2]
[336589554,1724959864028,-1920.4,0.00020547,2]
[336589555,1724959864038,-2341.41,0.00020547,2]
[336589556,1724959864048,-500.0,0.00020547,2]
[336589557,1724959864057,-2245.67,0.00020547,2]
[336589558,1724959864067,-3653.88,0.00020547,2]
[336589559,1724959864077,-500.0,0.00020547,2]
[336589560,1724959864087,-500.0,0.00020547,2]
[336589561,1724959864098,-1513.12,0.00020547,2]
[336589562,1724959864108,-500.0,0.00020547,2]
[336589563,1724959864118,-500.0,0.00020547,2]
[336589564,1724959864129,-7125.4,0.00020547,2]
[336589565,1724959864139,-1562.151045,0.00020547,2]
[336589566,1724959864149,-687.9,0.00020547,2]
[336589567,1724959864158,-500.0,0.00020547,2]
[336589568,1724959864169,-2432.83,0.00020547,2]
[336589569,1724959864179,-500.0,0.00020547,2]
[336589570,1724959864194,-500.0,0.00020547,2]
[336589571,1724959864203,-1562.151045,0.00020547,2]
[336589572,1724959864214,-1735.37,0.00020547,2]
[336589573,1724959864225,-500.0,0.00020547,2]
[336589574,1724959864236,-156.24888186,0.00020547,2]
[336589575,1724959864247,-198.948511,0.00020547,2]
[336589576,1724959864257,-500.0,0.00020547,2]
[336589577,1724959864269,-1860.24,0.00020547,2]
[336589578,1724959864279,-500.0,0.00020547,2]
[336589579,1724959864289,-1823.65,0.00020547,2]
[336589580,1724959864300,-198.948511,0.00020547,2]
[336589581,1724959864310,-151.0,0.00020547,2]
[336589582,1724959864320,-500.0,0.00020547,2]
[336589583,1724959864331,-500.0,0.00020547,2]
[336589584,1724959864341,-500.0,0.00020547,2]
[336589585,1724959864352,-1687.53,0.00020547,2]
[336589586,1724959864362,-640.19,0.00020547,2]
[336589587,1724959864372,-1798.968384,0.00020547,2]
[336589588,1724959864382,-500.0,0.00020547,2]
[336589589,1724959864393,-1798.968384,0.00020547,2]
[336589590,1724959864403,-692.81,0.00020547,2]
[336589591,1724959864414,-2819.92,0.00020547,2]
[336589592,1724959864424,-500.0,0.00020547,2]
[336589593,1724959864434,-7069.08,0.00020547,2]
[336589594,1724959864444,-500.0,0.00020547,2]
[336589595,1724959864454,-7852.79,0.00020547,2]
[336589596,1724959864465,-418.36498908,0.00020547,2]
[336589597,1724959864475,-1778.75,0.00020547,2]
[336589598,1724959864484,-500.0,0.00020547,2]
[336589599,1724959864494,-500.173075,0.00020547,2]
[336589600,1724959864504,-151.0,0.00020547,2]
[336589601,1724959864514,-5307.89,0.00020547,2]
[336589602,1724959864524,-500.173075,0.00020547,2]
[336589603,1724959864536,-563.92,0.00020547,2]
[336589604,1724959864546,-563.48,0.00020547,2]
[336589605,1724959864555,-4411.53,0.00020547,2]
[336589606,1724959864565,-500.0,0.00020547,2]
[336589607,1724959864575,-810.09,0.00020547,2]
[336589608,1724959864584,-500.0,0.00020547,2]
[336589609,1724959864594,-500.0,0.00020547,2]
[336589610,1724959864604,-587.0,0.00020569,2]
[336589611,1724959864614,-2500.0,0.00020681,2]
[336589612,1724959864624,-2500.0,0.0002069,2]
[336589613,1724959864634,-493.398177,0.00020707,2]
[336589614,1724959864646,-1225.70301375,0.00020712,2]
[336589615,1724959864656,-184.25,0.000208,2]
[336589616,1724959864666,-155.0,0.0002081,4]
[336589617,1724959864676,-500.0,0.00020821,2]
[336589618,1724959864686,-500.0,0.00020821,2]
[336589619,1724959864696,-500.0,0.00020821,2]
[336589620,1724959864706,-480.89124821,0.00020821,2]
[336589621,1724959864716,-626.84049778,0.00020821,2]
[336589622,1724959864725,-500.0,0.00020821,2]
[336589623,1724959864735,-151.0,0.00020821,2]
[336589624,1724959864745,-200.0,0.00020821,2]
[336589625,1724959864754,-208.6236776,0.00020821,2]
[336589626,1724959864763,-617.02721543,0.00020821,2]
[336589627,1724959864773,-500.0,0.00020821,2]
[336589628,1724959864784,-500.0,0.00020821,2]
[336589629,1724959864793,-500.0,0.00020821,2]
[336589630,1724959864802,-644.91601602,0.00020821,2]
[336589631,1724959864812,-500.0,0.00020821,2]
[336589632,1724959864822,-500.0,0.00020821,2]
[336589633,1724959864831,-500.0,0.00020821,2]
[336589634,1724959864841,-595.01004287,0.00020821,2]
[336589635,1724959864850,-972.15,0.00020821,2]
[336589636,1724959864860,-500.0,0.00020821,2]
[336589637,1724959864869,-500.0,0.00020821,2]
[336589638,1724959864878,-500.0,0.00020821,2]
[336589639,1724959864888,-266.49373725,0.00020821,2]
[336589640,1724959864897,-568.31,0.00020821,2]
[336589641,1724959864906,-500.0,0.00020821,2]
[336589642,1724959864915,-500.0,0.00020821,2]
[336589643,1724959864925,-500.0,0.00020821,2]
[336589644,1724959864934,-500.0,0.00020821,2]
[336589645,1724959864944,-886.8,0.00020821,2]
[336589646,1724959864953,-500.0,0.00020821,2]
[336589647,1724959864963,-591.56,0.00020821,2]
[336589648,1724959864972,-500.0,0.00020821,2]
[336589649,1724959864982,-500.0,0.00020821,2]
[336589650,1724959864991,-572.09,0.00020821,2]
[336589651,1724959865000,-507.64,0.00020821,2]
[336589652,1724959865010,-986.6,0.00020821,2]
[336589653,1724959865019,-606.68595998,0.00020821,2]
[336589654,1724959865030,-500.0,0.00020821,2]
[336589655,1724959865039,-668.17,0.00020821,2]
[336589664,1724959865151,-500.0,0.00020821,2]
[336589666,1724959865162,-1355.56,0.00020821,2]
[336589667,1724959865172,-776.41,0.00020821,2]
[336589668,1724959865182,-500.0,0.00020821,2]
[336589669,1724959865192,-829.52,0.00020821,2]
[336589670,1724959865202,-579.36,0.00020821,2]
[336589671,1724959865211,-500.0,0.00020821,2]
[336589672,1724959865221,-605.81,0.00020821,2]
[336589673,1724959865234,-836.77,0.00020821,2]
[336589674,1724959865244,-500.0,0.00020821,2]
[336589675,1724959865254,-500.0,0.00020821,2]
[336589676,1724959865263,-584.54,0.00020821,2]
[336589677,1724959865274,-500.7,0.00020821,2]
[336589678,1724959865287,-500.0,0.00020821,2]
[336589679,1724959865297,-500.0,0.00020821,2]
[336589680,1724959865308,-500.0,0.00020821,2]
[336589681,1724959865318,-500.0,0.00020821,2]
[336589682,1724959865327,-1704.24,0.00020821,2]
[336589683,1724959865338,-500.0,0.00020821,2]
[336589684,1724959865348,-323.05766005,0.00020821,2]
[336589685,1724959865358,-500.0,0.00020821,2]
[336589686,1724959865368,-500.0,0.00020821,2]
[336589687,1724959865378,-500.0,0.00020821,2]
[336589688,1724959865388,-1674.51,0.00020821,2]
[336589689,1724959865398,-205.72538282,0.00020821,2]
[336589690,1724959865408,-151.0,0.00020821,2]
[336589691,1724959865418,-500.0,0.00020821,2]
[336589692,1724959865428,-151.0,0.00020821,2]
[336589693,1724959865438,-500.0,0.00020821,2]
[336589694,1724959865447,-500.0,0.00020821,2]
[336589695,1724959865458,-2011.91,0.00020821,2]
[336589696,1724959865469,-500.0,0.00020821,2]
[336589697,1724959865478,-1578.86,0.00020821,2]
[336589698,1724959865488,-5672.749772,0.00020821,2]
[336589699,1724959865498,-500.0,0.00020821,2]
[336589700,1724959865507,-5672.749772,0.00020821,2]
[336589701,1724959865518,-5094.968618,0.00020821,2]
[336589702,1724959865532,-5094.968618,0.00020821,2]
[336589703,1724959865541,-500.0,0.00020821,2]
[336589704,1724959865551,-1943.11,0.00020821,2]
[336589705,1724959865560,-500.0,0.00020821,2]
[336589706,1724959865569,-4403.86,0.00020821,2]
[336589707,1724959865580,-500.0,0.00020821,2]
[336589708,1724959865589,-3148.43,0.00020821,2]
[336589709,1724959865599,-5511.193121,0.00020821,2]
[336589710,1724959865608,-5511.193121,0.00020821,2]
[336589711,1724959865618,-1722.01,0.00020821,2]
[336589712,1724959865628,-2200.88,0.00020821,2]
[336589713,1724959865638,-10005.23,0.00020821,2]
[336589714,1724959865649,-1758.17,0.00020821,2]
[336589715,1724959865660,-500.0,0.00020821,2]
[336589716,1724959865671,-500.0,0.00020821,2]
[336589717,1724959865681,-4039.87,0.00020821,2]
[336589718,1724959865690,-2874.84,0.00020821,2]
[336589719,1724959865700,-6955.28,0.00020821,2]
[336589720,1724959865710,-8645.87,0.00020821,2]
[336589721,1724959865720,-7860.36,0.00020821,2]
[336589722,1724959865730,-3052.09,0.00020821,2]
[336589723,1724959865740,-273.471213,0.00020821,2]
[336589724,1724959865750,-526.41,0.00020821,2]
[336589725,1724959865760,-273.471213,0.00020821,2]
[336589726,1724959865770,-1992.41,0.00020821,2]
[336589727,1724959865781,-2516.329952,0.00020821,2]
[336589728,1724959865791,-2047.97,0.00020821,2]
[336589729,1724959865801,-500.0,0.00020821,2]
[336589730,1724959865810,-1568.45,0.00020821,2]
[336589731,1724959865820,-1778.974224,0.00020821,2]
[336589732,1724959865830,-2516.329952,0.00020821,2]
[336589733,1724959865839,-1562.05,0.00020821,2]
[336589734,1724959865850,-500.0,0.00020821,2]
[336589735,1724959865860,-1778.974224,0.00020821,2]
[336589736,1724959865869,-500.0,0.00020821,2]
[336589737,1724959865879,-500.0,0.00020821,2]
[336589738,1724959865888,-151.0,0.00020821,2]
[336589739,1724959865898,-500.0,0.00020821,2]
[336589740,1724959865909,-283.389656,0.00020821,2]
[336589741,1724959865919,-2122.12,0.00020821,2]
[336589742,1724959865929,-864.74,0.00020821,2]
[336589743,1724959865939,-283.389656,0.00020821,2]
[336589744,1724959865950,-10000.0,0.00020821,2]